[Event "NJSK 2023 Jeugd B"]
[Site "Almelo, Netherlands"]
[Date "2023.05.04"]
[Round "5.1"]
[White "Labruyere, Roger"]
[Black "Van Foreest, Nanne"]
[Result "1-0"]
[TimeControl "90min/40moves + 30min + 30sec/move"]
[WhiteElo "2160"]
[BlackElo "1893"]

1. e4 {[%clk 01:30:59]} c6 {[%clk 01:30:53]} {[%emt 00:00:07]} 2. d4 {[%clk
01:29:28]} {[%emt 00:02:01]} d5 {[%clk 01:31:19]} {[%emt 00:00:04]} 3. exd5
{[%clk 01:29:54]} {[%emt 00:00:05]} cxd5 {[%clk 01:31:46]} {[%emt 00:00:03]} 4.
Bd3 {[%clk 01:30:19]} {[%emt 00:00:05]} Nf6 {[%clk 01:32:12]} {[%emt 00:00:04]}
5. h3 {[%clk 01:30:02]} {[%emt 00:00:46]} e6 {[%clk 01:32:24]} {[%emt
00:00:19]} 6. Nf3 {[%clk 01:30:10]} {[%emt 00:00:21]} Nc6 {[%clk 01:32:17]}
{[%emt 00:00:37]} 7. c3 {[%clk 01:30:34]} {[%emt 00:00:06]} Bd6 {[%clk
01:32:38]} {[%emt 00:00:10]} 8. O-O {[%clk 01:30:47]} {[%emt 00:00:17]} O-O
{[%clk 01:33:01]} {[%emt 00:00:07]} 9. Re1 {[%clk 01:30:45]} {[%emt 00:00:32]}
Qc7 {[%clk 01:30:42]} {[%emt 00:02:49]} 10. Qe2 {[%clk 01:29:53]} {[%emt
00:01:22]} b6 {[%clk 01:18:20]} {[%emt 00:12:52]} 11. Nbd2 {[%clk 01:28:58]}
{[%emt 00:01:25]} Bb7 {[%clk 01:18:38]} {[%emt 00:00:12]} 12. Ne5 {[%clk
01:28:43]} {[%emt 00:00:44]} Bxe5 {[%clk 01:15:13]} {[%emt 00:03:56]} 13. dxe5
{[%clk 01:29:07]} {[%emt 00:00:06]} Nd7 {[%clk 01:15:40]} {[%emt 00:00:02]} 14.
Nf3 {[%clk 01:27:50]} {[%emt 00:01:47]} h6 {[%clk 01:14:28]} {[%emt 00:01:43]}
15. b3 {[%clk 01:23:45]} {[%emt 00:04:34]} Rae8 {[%clk 01:13:54]} {[%emt
00:01:04]} 16. Ba3 {[%clk 01:22:09]} {[%emt 00:02:07]} Ne7 {[%clk 00:58:13]}
{[%emt 00:16:10]} 17. Rac1 {[%clk 01:20:51]} {[%emt 00:01:48]} Nc5 {[%clk
00:55:55]} {[%emt 00:02:49]} 18. Bb1 {[%clk 01:20:17]} {[%emt 00:01:02]} f5
{[%clk 00:51:01]} {[%emt 00:05:26]} 19. exf6 {[%clk 01:17:08]} {[%emt
00:03:39]} Rxf6 {[%clk 00:50:44]} {[%emt 00:00:46]} 20. Qe5 {[%clk 01:01:35]}
{[%emt 00:16:03]} Qxe5 {[%clk 00:50:18]} {[%emt 00:00:55]} 21. Nxe5 {[%clk
01:01:29]} {[%emt 00:00:38]} Bc8 {[%clk 00:37:23]} {[%emt 00:13:25]} 22. c4
{[%clk 00:57:51]} {[%emt 00:04:07]} dxc4 {[%clk 00:34:05]} {[%emt 00:03:48]} 23.
Rxc4 {[%clk 00:56:57]} {[%emt 00:01:25]} Ba6 {[%clk 00:34:14]} {[%emt
00:00:21]} 24. Bxc5 {[%clk 00:56:57]} {[%emt 00:00:30]} Bxc4 {[%clk 00:24:32]}
{[%emt 00:10:11]} 25. Bxe7 {[%clk 00:57:21]} {[%emt 00:00:07]} Rxe7 {[%clk
00:24:58]} {[%emt 00:00:04]} 26. Nxc4 {[%clk 00:57:18]} {[%emt 00:00:32]} Rd7
{[%clk 00:22:41]} {[%emt 00:02:47]} 27. Be4 {[%clk 00:55:52]} {[%emt 00:01:56]}
b5 {[%clk 00:22:48]} {[%emt 00:00:24]} 28. Ne5 {[%clk 00:55:37]} {[%emt
00:00:44]} Rd2 {[%clk 00:23:09]} {[%emt 00:00:09]} 29. Ng4 {[%clk 00:52:50]}
{[%emt 00:03:17]} Rf8 {[%clk 00:22:52]} {[%emt 00:00:47]} 30. a4 {[%clk
00:47:07]} {[%emt 00:06:13]} bxa4 {[%clk 00:22:31]} {[%emt 00:00:52]} 31. bxa4
{[%clk 00:47:24]} {[%emt 00:00:12]} h5 {[%clk 00:22:59]} {[%emt 00:00:02]} 32.
Ne5 {[%clk 00:45:52]} {[%emt 00:02:02]} Rfxf2 {[%clk 00:23:04]} {[%emt
00:00:25]} 33. Bf3 {[%clk 00:44:32]} {[%emt 00:01:50]} Ra2 {[%clk 00:23:28]}
{[%emt 00:00:06]} 34. Nc6 {[%clk 00:43:01]} {[%emt 00:02:01]} Rfd2 {[%clk
00:19:27]} {[%emt 00:04:30]} 35. a5 {[%clk 00:41:35]} {[%emt 00:01:58]} Rd6
{[%clk 00:15:56]} {[%emt 00:04:00]} 36. Re5 {[%clk 00:40:27]} {[%emt 00:01:38]}
Rc2 {[%clk 00:14:48]} {[%emt 00:01:38]} 37. Nxa7 {[%clk 00:31:01]} {[%emt
00:09:57]} Ra6 {[%clk 00:14:56]} {[%emt 00:00:22]} 38. Nb5 {[%clk 00:31:23]}
{[%emt 00:00:08]} Rxa5 {[%clk 00:15:18]} {[%emt 00:00:08]} 39. Rxh5 {[%clk
00:31:22]} {[%emt 00:00:30]} Rb2 {[%clk 00:14:47]} {[%emt 00:01:01]} 40. Bc6
{[%clk 00:30:33]} {[%emt 00:01:19]} Ra6 {[%clk 00:06:48]} {[%emt 00:08:30]} 41.
Be4 {[%clk 00:23:49]} {[%emt 00:07:14]} Ra5 {[%clk 00:06:23]} {[%emt 00:00:55]}
42. Bd3 {[%clk 00:22:31]} {[%emt 00:01:47]} Rd2 {[%clk 00:27:34]} {[%emt
00:09:19]} 43. Bc4 {[%clk 00:50:29]} {[%emt 00:02:33]} Ra1+ {[%clk 00:27:51]}
{[%emt 00:00:13]} 44. Kh2 {[%clk 00:50:49]} {[%emt 00:00:08]} Kf7 {[%clk
00:27:36]} {[%emt 00:00:46]} 45. Re5 {[%clk 00:43:12]} {[%emt 00:08:06]} Rc1
{[%clk 00:26:02]} {[%emt 00:02:04]} 46. Na3 {[%clk 00:34:20]} {[%emt 00:09:23]}
Rd6 {[%clk 00:21:16]} {[%emt 00:05:16]} 47. Be2 {[%clk 00:26:29]} {[%emt
00:08:21]} Kf6 {[%clk 00:16:29]} {[%emt 00:05:18]} 48. Re3 {[%clk 00:26:31]}
{[%emt 00:00:27]} Rd2 {[%clk 00:16:11]} {[%emt 00:00:48]} 49. Bg4 {[%clk
00:24:36]} {[%emt 00:02:25]} Rc6 {[%clk 00:15:51]} {[%emt 00:00:50]} 50. Nb5
{[%clk 00:24:25]} {[%emt 00:00:41]} e5 {[%clk 00:12:09]} {[%emt 00:04:13]} 51.
Nc3 {[%clk 00:23:31]} {[%emt 00:01:22]} Rd4 {[%clk 00:12:25]} {[%emt 00:00:15]}
52. Ne4+ {[%clk 00:23:33]} {[%emt 00:00:27]} Ke7 {[%clk 00:12:52]} {[%emt
00:00:05]} 53. Ng3 {[%clk 00:23:45]} {[%emt 00:00:16]} Kf6 {[%clk 00:13:06]}
{[%emt 00:00:17]} 54. Nh5+ {[%clk 00:24:05]} {[%emt 00:00:10]} Kg5 {[%clk
00:12:28]} {[%emt 00:01:09]} 55. Rxe5+ {[%clk 00:24:22]} {[%emt 00:00:12]} Kh6
{[%clk 00:12:47]} {[%emt 00:00:11]} 56. Ng3 {[%clk 00:24:34]} {[%emt 00:00:17]}
g6 {[%clk 00:13:07]} {[%emt 00:00:12]} 57. Re7 {[%clk 00:24:10]} {[%emt
00:00:53]} Rd2 {[%clk 00:13:13]} {[%emt 00:00:24]} 58. Bf3 {[%clk 00:24:12]}
{[%emt 00:00:27]} Rc8 {[%clk 00:09:00]} {[%emt 00:04:44]} 59. Ne4 {[%clk
00:23:53]} {[%emt 00:00:49]} Rdc2 {[%clk 00:09:25]} {[%emt 00:00:05]} 60. Nf6
{[%clk 00:23:42]} {[%emt 00:00:41]} R8c7 {[%clk 00:09:34]} {[%emt 00:00:21]} 61.
Ng4+ {[%clk 00:23:45]} {[%emt 00:00:26]} Kg5 {[%clk 00:09:59]} {[%emt
00:00:07]} 62. Re5+ {[%clk 00:23:15]} {[%emt 00:01:00]} Kf4 {[%clk 00:10:20]}
{[%emt 00:00:09]} 63. Re4+ {[%clk 00:23:26]} {[%emt 00:00:18]} Kg5 {[%clk
00:10:38]} {[%emt 00:00:12]} 64. Kg3 {[%clk 00:23:28]} {[%emt 00:00:27]} R7c5
{[%clk 00:09:23]} {[%emt 00:01:46]} 65. Re7 {[%clk 00:22:45]} {[%emt 00:01:12]}
R2c3 {[%clk 00:09:21]} {[%emt 00:00:33]} 66. Rf7 {[%clk 00:21:44]} {[%emt
00:01:31]} Kh5 {[%clk 00:08:31]} {[%emt 00:01:20]} 67. Nf2+ {[%clk 00:21:16]}
{[%emt 00:00:58]} Kh6 {[%clk 00:08:52]} {[%emt 00:00:10]} 68. Ng4+ {[%clk
00:19:50]} {[%emt 00:01:55]} Kh5 {[%clk 00:09:20]} {[%emt 00:00:02]} 69. Nf6+
{[%clk 00:19:47]} {[%emt 00:00:33]} Kh6 {[%clk 00:09:27]} {[%emt 00:00:24]} 70.
Ng8+ {[%clk 00:20:09]} {[%emt 00:00:08]} 1-0

[Event "NJSK 2023 Jeugd B"]
[Site "Almelo, Netherlands"]
[Date "2023.05.04"]
[Round "5.2"]
[White "Kumar, Prajit Sai"]
[Black "Bakija, Alan"]
[Result "1/2-1/2"]
[TimeControl "90min/40moves + 30min + 30sec/move"]
[WhiteElo "2228"]
[BlackElo "1999"]

1. d4 {[%clk 01:30:57]} {[%emt 00:00:02]} d5 {[%clk 01:30:57]} {[%emt
00:00:04]} 2. Nf3 {[%clk 01:31:23]} {[%emt 00:00:04]} Nf6 {[%clk 01:31:53]}
{[%emt 00:00:04]} 3. c4 {[%clk 01:32:18]} {[%emt 00:00:05]} c6 {[%clk
01:32:19]} {[%emt 00:00:04]} 4. g3 {[%clk 01:32:44]} {[%emt 00:00:03]} Nbd7
{[%clk 01:22:23]} {[%emt 00:10:27]} 5. Bg2 {[%clk 01:32:52]} {[%emt 00:00:22]}
Nb6 {[%clk 01:21:58]} {[%emt 00:00:55]} 6. Nbd2 {[%clk 01:30:40]} {[%emt
00:02:42]} Bf5 {[%clk 01:14:18]} {[%emt 00:08:09]} 7. b3 {[%clk 01:30:34]}
{[%emt 00:00:37]} h6 {[%clk 01:12:38]} {[%emt 00:02:10]} 8. O-O {[%clk
01:30:35]} {[%emt 00:00:28]} e6 {[%clk 01:13:00]} {[%emt 00:00:08]} 9. Bb2
{[%clk 01:30:45]} {[%emt 00:00:21]} Be7 {[%clk 01:13:13]} {[%emt 00:00:16]} 10.
Re1 {[%clk 01:30:40]} {[%emt 00:00:36]} O-O {[%clk 01:13:30]} {[%emt 00:00:11]}
11. Ne5 {[%clk 01:27:34]} {[%emt 00:03:38]} Nbd7 {[%clk 01:06:00]} {[%emt
00:08:00]} 12. Nxd7 {[%clk 01:25:17]} {[%emt 00:02:48]} Qxd7 {[%clk 01:06:37]}
{[%emt 00:00:23]} 13. e4 {[%clk 01:25:01]} {[%emt 00:01:15]} Nxe4 {[%clk
01:06:49]} {[%emt 00:00:18]} 14. Nxe4 {[%clk 01:25:25]} {[%emt 00:00:06]} Bxe4
{[%clk 01:06:17]} {[%emt 00:01:02]} 15. Bxe4 {[%clk 01:25:50]} {[%emt
00:00:05]} dxe4 {[%clk 01:06:39]} {[%emt 00:00:08]} 16. Rxe4 {[%clk 01:26:14]}
{[%emt 00:00:05]} Bf6 {[%clk 01:04:46]} {[%emt 00:02:23]} 17. Qc2 {[%clk
01:24:54]} {[%emt 00:01:51]} Qc7 {[%clk 01:00:30]} {[%emt 00:04:46]} 18. Rd1
{[%clk 01:24:29]} {[%emt 00:00:54]} Rad8 {[%clk 01:00:34]} {[%emt 00:00:26]} 19.
b4 {[%clk 01:23:14]} {[%emt 00:01:46]} Rd7 {[%clk 01:00:18]} {[%emt 00:00:46]}
20. Re2 {[%clk 01:19:37]} {[%emt 00:04:06]} Rfd8 {[%clk 00:59:34]} {[%emt
00:01:14]} 21. Red2 {[%clk 01:19:42]} {[%emt 00:00:25]} e5 {[%clk 00:38:47]}
{[%emt 00:21:18]} 22. dxe5 {[%clk 01:20:07]} {[%emt 00:00:05]} Rxd2 {[%clk
00:39:13]} {[%emt 00:00:04]} 23. Rxd2 {[%clk 01:20:34]} {[%emt 00:00:02]} Rxd2
{[%clk 00:39:35]} {[%emt 00:00:08]} 24. Qxd2 {[%clk 01:21:01]} {[%emt
00:00:04]} Bxe5 {[%clk 00:39:59]} {[%emt 00:00:05]} 25. Bxe5 {[%clk 01:21:13]}
{[%emt 00:00:19]} Qxe5 {[%clk 00:40:24]} {[%emt 00:00:05]} 26. Qd8+ {[%clk
01:21:39]} {[%emt 00:00:03]} Kh7 {[%clk 00:40:46]} {[%emt 00:00:08]} 27. Qd3+
{[%clk 01:22:06]} {[%emt 00:00:03]} Kg8 {[%clk 00:41:08]} {[%emt 00:00:09]} 28.
a3 {[%clk 01:22:28]} {[%emt 00:00:08]} g6 {[%clk 00:27:42]} {[%emt 00:13:56]}
29. Kg2 {[%clk 01:22:50]} {[%emt 00:00:09]} h5 {[%clk 00:24:24]} {[%emt
00:03:47]} 30. h3 {[%clk 01:21:43]} {[%emt 00:01:37]} a6 {[%clk 00:24:00]}
{[%emt 00:00:54]} 31. h4 {[%clk 01:19:23]} {[%emt 00:02:50]} Kg7 {[%clk
00:21:29]} {[%emt 00:03:00]} 32. Kf3 {[%clk 01:19:45]} {[%emt 00:00:09]} Qf6+
{[%clk 00:13:10]} {[%emt 00:08:49]} 33. Kg2 {[%clk 01:20:08]} {[%emt 00:00:07]}
Qe5 {[%clk 00:13:34]} {[%emt 00:00:06]} 34. c5 {[%clk 01:19:56]} {[%emt
00:00:42]} Kf8 {[%clk 00:07:50]} {[%emt 00:06:10]} 35. f4 {[%clk 01:18:28]}
{[%emt 00:02:01]} Qe6 {[%clk 00:06:33]} {[%emt 00:01:47]} 36. Kf3 {[%clk
01:18:06]} {[%emt 00:00:52]} Qg4+ {[%clk 00:03:08]} {[%emt 00:03:56]} 37. Kf2
{[%clk 01:18:31]} {[%emt 00:00:04]} Qe6 {[%clk 00:03:24]} {[%emt 00:00:14]} 38.
Qe3 {[%clk 01:17:41]} {[%emt 00:01:21]} Qd5 {[%clk 00:02:51]} {[%emt 00:01:02]}
39. Ke2 {[%clk 01:17:48]} {[%emt 00:00:23]} Qg2+ {[%clk 00:02:52]} {[%emt
00:00:30]} 40. Kd3 {[%clk 01:16:42]} {[%emt 00:01:36]} Qd5+ {[%clk 00:03:08]}
{[%emt 00:00:12]} 41. Qd4 {[%clk 01:15:39]} {[%emt 00:01:33]} Qf3+ {[%clk
00:03:25]} {[%emt 00:00:14]} 42. Qe3 {[%clk 01:16:03]} {[%emt 00:00:07]} Qd5+
{[%clk 00:03:50]} {[%emt 00:00:04]} 43. Kc3 {[%clk 01:15:47]} {[%emt 00:00:45]}
Qa2 {[%clk 00:03:52]} {[%emt 00:00:29]} 44. Kd4 {[%clk 01:16:08]} {[%emt
00:00:10]} 1/2-1/2

[Event "NJSK 2023 Jeugd B"]
[Site "Almelo, Netherlands"]
[Date "2023.05.04"]
[Round "5.3"]
[White "Smeets, Kobe"]
[Black "Van Egmond, Tom"]
[Result "1-0"]
[TimeControl "90min/40moves + 30min + 30sec/move"]
[WhiteElo "2094"]
[BlackElo "1767"]

1. e4 {[%clk 01:30:58]} {[%emt 00:00:02]} c5 {[%clk 01:30:56]} {[%emt
00:00:05]} 2. Nf3 {[%clk 01:31:23]} {[%emt 00:00:05]} Nc6 {[%clk 01:31:23]}
{[%emt 00:00:03]} 3. d4 {[%clk 01:31:47]} {[%emt 00:00:06]} cxd4 {[%clk
01:31:49]} {[%emt 00:00:04]} 4. Nxd4 {[%clk 01:32:11]} {[%emt 00:00:05]} Nf6
{[%clk 01:32:16]} {[%emt 00:00:03]} 5. Nc3 {[%clk 01:32:35]} {[%emt 00:00:06]}
d6 {[%clk 01:32:42]} {[%emt 00:00:04]} 6. Bg5 {[%clk 01:32:58]} {[%emt
00:00:08]} e6 {[%clk 01:33:04]} {[%emt 00:00:08]} 7. Qd3 {[%clk 01:33:24]}
{[%emt 00:00:03]} Bd7 {[%clk 01:33:27]} {[%emt 00:00:08]} 8. O-O-O {[%clk
01:33:46]} {[%emt 00:00:08]} a6 {[%clk 01:22:32]} {[%emt 00:11:25]} 9. f4
{[%clk 01:34:12]} {[%emt 00:00:04]} Be7 {[%clk 01:21:55]} {[%emt 00:01:07]} 10.
Nf3 {[%clk 01:34:35]} {[%emt 00:00:06]} b5 {[%clk 01:10:05]} {[%emt 00:12:21]}
11. e5 {[%clk 01:20:51]} {[%emt 00:14:14]} dxe5 {[%clk 01:05:10]} {[%emt
00:05:25]} 12. fxe5 {[%clk 01:21:03]} {[%emt 00:00:18]} Ng4 {[%clk 00:59:53]}
{[%emt 00:05:46]} 13. Bxe7 {[%clk 01:21:02]} {[%emt 00:00:31]} Qxe7 {[%clk
00:59:46]} {[%emt 00:00:38]} 14. Ne4 {[%clk 01:20:33]} {[%emt 00:00:59]} Ngxe5
{[%clk 00:58:01]} {[%emt 00:02:15]} 15. Nxe5 {[%clk 01:20:46]} {[%emt
00:00:16]} Nxe5 {[%clk 00:58:26]} {[%emt 00:00:05]} 16. Qg3 {[%clk 01:17:03]}
{[%emt 00:04:13]} Ng6 {[%clk 00:47:13]} {[%emt 00:11:44]} 17. Qc7 {[%clk
00:53:59]} {[%emt 00:23:33]} Qd8 {[%clk 00:38:11]} {[%emt 00:09:33]} 18. Nd6+
{[%clk 00:40:33]} {[%emt 00:13:55]} Kf8 {[%clk 00:38:28]} {[%emt 00:00:13]} 19.
Qxd8+ {[%clk 00:40:50]} {[%emt 00:00:13]} Rxd8 {[%clk 00:38:57]} {[%emt
00:00:01]} 20. Nb7 {[%clk 00:41:10]} {[%emt 00:00:10]} Ke7 {[%clk 00:36:18]}
{[%emt 00:03:09]} 21. Nxd8 {[%clk 00:41:34]} {[%emt 00:00:07]} Rxd8 {[%clk
00:36:42]} {[%emt 00:00:06]} 22. Be2 {[%clk 00:41:01]} {[%emt 00:01:02]} Rc8
{[%clk 00:26:05]} {[%emt 00:11:07]} 23. Rhe1 {[%clk 00:28:59]} {[%emt
00:12:32]} Bc6 {[%clk 00:22:45]} {[%emt 00:03:50]} 24. g3 {[%clk 00:27:46]}
{[%emt 00:01:44]} Ne5 {[%clk 00:19:03]} {[%emt 00:04:11]} 25. Bxb5 {[%clk
00:12:41]} {[%emt 00:15:35]} Nf3 {[%clk 00:19:02]} {[%emt 00:00:31]} 26. Bxc6
{[%clk 00:13:04]} {[%emt 00:00:07]} Nxe1 {[%clk 00:18:40]} {[%emt 00:00:52]} 27.
Be4 {[%clk 00:13:27]} {[%emt 00:00:07]} f5 {[%clk 00:18:54]} {[%emt 00:00:17]}
28. Rxe1 {[%clk 00:13:45]} {[%emt 00:00:11]} fxe4 {[%clk 00:19:20]} {[%emt
00:00:04]} 29. Rxe4 {[%clk 00:14:09]} {[%emt 00:00:06]} Rc5 {[%clk 00:18:13]}
{[%emt 00:01:37]} 30. Kd2 {[%clk 00:13:20]} {[%emt 00:01:19]} Kd6 {[%clk
00:15:37]} {[%emt 00:03:06]} 31. b4 {[%clk 00:12:29]} {[%emt 00:01:21]} Rf5
{[%clk 00:14:27]} {[%emt 00:01:40]} 32. Ke2 {[%clk 00:11:31]} {[%emt 00:01:28]}
Kd5 {[%clk 00:11:15]} {[%emt 00:03:43]} 33. Rh4 {[%clk 00:11:41]} {[%emt
00:00:19]} h6 {[%clk 00:11:08]} {[%emt 00:00:36]} 34. c4+ {[%clk 00:11:38]}
{[%emt 00:00:34]} Kd6 {[%clk 00:11:13]} {[%emt 00:00:25]} 35. Rd4+ {[%clk
00:11:41]} {[%emt 00:00:27]} Kc6 {[%clk 00:11:29]} {[%emt 00:00:13]} 36. Rf4
{[%clk 00:07:58]} {[%emt 00:04:13]} Rh5 {[%clk 00:10:14]} {[%emt 00:01:45]} 37.
h4 {[%clk 00:08:01]} {[%emt 00:00:28]} g5 {[%clk 00:08:10]} {[%emt 00:02:34]}
38. Rd4 {[%clk 00:07:09]} {[%emt 00:01:22]} gxh4 {[%clk 00:08:23]} {[%emt
00:00:17]} 39. Rxh4 {[%clk 00:04:43]} {[%emt 00:02:56]} Re5+ {[%clk 00:07:34]}
{[%emt 00:01:19]} 40. Kd3 {[%clk 00:04:37]} {[%emt 00:00:36]} h5 {[%clk
00:06:38]} {[%emt 00:01:26]} 41. Re4 {[%clk 00:04:21]} {[%emt 00:00:45]} Rg5
{[%clk 00:04:18]} {[%emt 00:02:51]} 42. Rxe6+ {[%clk 00:04:36]} {[%emt
00:00:15]} Kb7 {[%clk 00:04:41]} {[%emt 00:00:07]} 43. Re3 {[%clk 00:04:47]}
{[%emt 00:00:18]} Kc6 {[%clk 00:04:52]} {[%emt 00:00:20]} 44. Kc3 {[%clk
00:04:53]} {[%emt 00:00:24]} Kb6 {[%clk 00:04:47]} {[%emt 00:00:35]} 45. Rd3
{[%clk 00:05:00]} {[%emt 00:00:23]} Kc6 {[%clk 00:05:07]} {[%emt 00:00:10]} 46.
Kb3 {[%clk 00:30:25]} {[%emt 00:05:05]} Rg4 {[%clk 00:34:29]} {[%emt 00:01:08]}
47. Rc3 {[%clk 00:30:35]} {[%emt 00:00:20]} Rg5 {[%clk 00:34:09]} {[%emt
00:00:50]} 48. Ka4 {[%clk 00:30:47]} {[%emt 00:00:18]} Kb6 {[%clk 00:34:18]}
{[%emt 00:00:21]} 49. c5+ {[%clk 00:30:28]} {[%emt 00:00:48]} Kc6 {[%clk
00:34:32]} {[%emt 00:00:17]} 50. Ka5 {[%clk 00:30:39]} {[%emt 00:00:20]} Rg8
{[%clk 00:34:49]} {[%emt 00:00:12]} 51. Rd3 {[%clk 00:31:00]} {[%emt 00:00:09]}
Rb8 {[%clk 00:34:56]} {[%emt 00:00:23]} 52. a4 {[%clk 00:31:21]} {[%emt
00:00:08]} 1-0

[Event "NJSK 2023 Jeugd B"]
[Site "Almelo, Netherlands"]
[Date "2023.05.04"]
[Round "5.4"]
[White "Van Arendonk, Polle"]
[Black "Blom, Rens"]
[Result "1-0"]
[TimeControl "90min/40moves + 30min + 30sec/move"]
[WhiteElo "1772"]
[BlackElo "1747"]

1. e4 {[%clk 01:30:58]} {[%emt 00:00:03]} d6 {[%clk 01:30:55]} {[%emt
00:00:06]} 2. d4 {[%clk 01:31:25]} {[%emt 00:00:02]} Nf6 {[%clk 01:31:21]}
{[%emt 00:00:04]} 3. Nc3 {[%clk 01:31:52]} {[%emt 00:00:03]} g6 {[%clk
01:31:44]} {[%emt 00:00:07]} 4. Nf3 {[%clk 01:32:17]} {[%emt 00:00:04]} Bg7
{[%clk 01:32:08]} {[%emt 00:00:06]} 5. Be2 {[%clk 01:32:43]} {[%emt 00:00:05]}
O-O {[%clk 01:32:32]} {[%emt 00:00:06]} 6. O-O {[%clk 01:33:09]} {[%emt
00:00:03]} Nc6 {[%clk 01:32:41]} {[%emt 00:00:22]} 7. d5 {[%clk 01:33:30]}
{[%emt 00:00:09]} Nb8 {[%clk 01:33:01]} {[%emt 00:00:10]} 8. h3 {[%clk
01:33:53]} {[%emt 00:00:06]} c6 {[%clk 01:32:51]} {[%emt 00:00:41]} 9. a4
{[%clk 01:34:15]} {[%emt 00:00:08]} b6 {[%clk 01:32:33]} {[%emt 00:00:48]} 10.
Be3 {[%clk 01:31:04]} {[%emt 00:03:40]} Bb7 {[%clk 01:32:07]} {[%emt 00:00:56]}
11. Qd2 {[%clk 01:29:13]} {[%emt 00:02:21]} Nbd7 {[%clk 01:30:47]} {[%emt
00:01:50]} 12. Rad1 {[%clk 01:20:44]} {[%emt 00:08:59]} Rc8 {[%clk 01:27:06]}
{[%emt 00:04:11]} 13. Bc4 {[%clk 01:10:34]} {[%emt 00:10:41]} cxd5 {[%clk
01:16:25]} {[%emt 00:11:10]} 14. Bxd5 {[%clk 01:10:57]} {[%emt 00:00:06]} Nxd5
{[%clk 01:11:05]} {[%emt 00:05:51]} 15. exd5 {[%clk 01:09:31]} {[%emt
00:01:56]} Re8 {[%clk 01:00:55]} {[%emt 00:10:40]} 16. Bd4 {[%clk 01:05:25]}
{[%emt 00:04:36]} Bxd4 {[%clk 00:51:50]} {[%emt 00:09:36]} 17. Nxd4 {[%clk
01:02:10]} {[%emt 00:03:45]} Ne5 {[%clk 00:50:05]} {[%emt 00:02:14]} 18. b3
{[%clk 00:58:04]} {[%emt 00:04:37]} Qc7 {[%clk 00:37:40]} {[%emt 00:12:55]} 19.
Ncb5 {[%clk 00:55:35]} {[%emt 00:02:59]} Qc5 {[%clk 00:36:26]} {[%emt
00:01:44]} 20. c4 {[%clk 00:55:02]} {[%emt 00:01:02]} a6 {[%clk 00:36:22]}
{[%emt 00:00:34]} 21. Nc3 {[%clk 00:54:53]} {[%emt 00:00:39]} e6 {[%clk
00:33:43]} {[%emt 00:03:09]} 22. Ne4 {[%clk 00:51:06]} {[%emt 00:04:17]} Qc7
{[%clk 00:32:53]} {[%emt 00:01:21]} 23. Nf6+ {[%clk 00:50:44]} {[%emt
00:00:51]} Kg7 {[%clk 00:33:00]} {[%emt 00:00:23]} 24. Nxe8+ {[%clk 00:50:58]}
{[%emt 00:00:16]} Rxe8 {[%clk 00:33:25]} {[%emt 00:00:05]} 25. f4 {[%clk
00:45:07]} {[%emt 00:06:21]} Nd7 {[%clk 00:32:49]} {[%emt 00:01:07]} 26. dxe6
{[%clk 00:44:23]} {[%emt 00:01:14]} fxe6 {[%clk 00:33:12]} {[%emt 00:00:07]} 27.
Nf3 {[%clk 00:44:14]} {[%emt 00:00:38]} d5 {[%clk 00:31:34]} {[%emt 00:02:07]}
28. Rfe1 {[%clk 00:40:24]} {[%emt 00:04:21]} Nf6 {[%clk 00:23:15]} {[%emt
00:08:49]} 29. Ng5 {[%clk 00:38:00]} {[%emt 00:02:54]} Qc6 {[%clk 00:21:26]}
{[%emt 00:02:19]} 30. cxd5 {[%clk 00:31:05]} {[%emt 00:07:26]} Nxd5 {[%clk
00:20:12]} {[%emt 00:01:43]} 31. Rc1 {[%clk 00:30:57]} {[%emt 00:00:37]} Qd6
{[%clk 00:18:34]} {[%emt 00:02:09]} 32. Qd4+ {[%clk 00:29:04]} {[%emt
00:02:23]} Kg8 {[%clk 00:18:10]} {[%emt 00:00:55]} 33. Qh8+ {[%clk 00:28:39]}
{[%emt 00:00:53]} Kxh8 {[%clk 00:18:31]} {[%emt 00:00:10]} 34. Nf7+ {[%clk
00:29:08]} {[%emt 00:00:01]} Kg7 {[%clk 00:18:21]} {[%emt 00:00:40]} 35. Nxd6
{[%clk 00:29:32]} {[%emt 00:00:06]} Re7 {[%clk 00:18:30]} {[%emt 00:00:22]} 36.
Nxb7 {[%clk 00:29:29]} {[%emt 00:00:33]} Rxb7 {[%clk 00:18:52]} {[%emt
00:00:07]} 37. Rxe6 {[%clk 00:29:34]} {[%emt 00:00:24]} Nxf4 {[%clk 00:19:12]}
{[%emt 00:00:11]} 38. Re4 {[%clk 00:28:47]} {[%emt 00:01:18]} Nd3 {[%clk
00:16:37]} {[%emt 00:03:04]} 39. Rc3 {[%clk 00:26:45]} {[%emt 00:02:32]} Rd7
{[%clk 00:14:27]} {[%emt 00:02:40]} 40. Kh2 {[%clk 00:18:33]} {[%emt 00:08:41]}
g5 {[%clk 00:07:12]} {[%emt 00:07:46]} 41. Rec4 {[%clk 00:14:31]} {[%emt
00:04:32]} Nc5 {[%clk 00:01:03]} {[%emt 00:06:40]} 42. a5 {[%clk 00:13:04]}
{[%emt 00:01:56]} Ne6 {[%clk 00:20:24]} {[%emt 00:11:08]} 43. axb6 {[%clk
00:43:09]} {[%emt 00:00:26]} 1-0